bitfinex-derivatives/quotes_BTCF0:USTF0_20241110
["timestamp","ask_amount","ask_price","bid_price","bid_amount"]
[1731274533023,0.062738,79652.0,79646.0,0.0016]
[1731274533222,0.062738,79652.0,79644.0,0.423544]
[1731274533223,0.062738,79652.0,79644.0,0.425224]
[1731274533425,0.01770452,79651.0,79648.0,0.06247107]
[1731274533621,0.01770452,79651.0,79644.0,0.36248]
[1731274533823,0.01770452,79651.0,79647.0,0.06313652]
[1731274536031,0.01770452,79651.0,79645.0,0.062743]
[1731274536423,0.01770452,79651.0,79644.0,0.3608]
[1731274536733,0.01770452,79651.0,79650.0,0.00091987]
[1731274539335,0.01770452,79651.0,79642.0,0.3608]
[1731274539527,0.062745,79643.0,79642.0,0.3608]
[1731274539728,0.06275,79637.0,79636.0,0.06139291]
[1731274540032,0.08045452,79637.0,79636.0,0.0001084]
[1731274541823,0.01770452,79637.0,79636.0,0.0001084]
[1731274542030,0.18494452,79638.0,79636.0,0.0628594]
[1731274542230,0.01770452,79637.0,79636.0,0.0628594]
[1731274542835,0.16724,79638.0,79636.0,0.0628594]
[1731274543037,0.062748,79640.0,79636.0,0.0628594]
[1731274543227,0.01733049,79639.0,79636.0,0.0628594]
[1731274543427,0.062748,79640.0,79636.0,0.0628594]
[1731274543823,0.16724,79644.0,79636.0,0.0001084]
[1731274544029,0.24477249,79638.0,79636.0,0.0001084]
[1731274544231,0.01741401,79637.0,79636.0,0.0001084]
[1731274548337,0.062759,79626.0,79625.0,0.001884]
[1731274548533,0.4291165,79626.0,79625.0,0.001884]
[1731274548932,0.3663575,79626.0,79625.0,0.001884]
[1731274552736,0.3663575,79626.0,79621.0,0.01181338]
[1731274552938,0.062761,79623.0,79617.0,0.06409129]
[1731274553138,0.062761,79623.0,79601.0,0.00188415]
[1731274553139,0.01741401,79622.0,79605.0,0.0791]
[1731274553334,0.18202349,79616.0,79614.0,0.062767]
[1731274553537,0.01741401,79615.0,79614.0,0.062767]
[1731274553937,0.18202349,79616.0,79614.0,0.062767]
[1731274554153,0.18202349,79616.0,79610.0,0.13964289]
[1731274554346,0.01677976,79615.0,79614.0,0.062762]
[1731274555930,0.16696,79623.0,79622.0,0.062755]
[1731274556135,0.18345425,79623.0,79622.0,0.062755]
[1731274556741,0.01649425,79623.0,79622.0,0.062755]
[1731274557041,0.18202349,79633.0,79622.0,0.062755]
[1731274557042,0.062751,79628.0,79622.0,0.062755]
[1731274557343,0.07872801,79627.0,79621.0,0.3608]
[1731274557541,0.16696,79630.0,79626.0,0.062752]
[1731274557739,0.01597827,79629.0,79621.0,0.3608]
[1731274558143,0.01610393,79628.0,79627.0,0.062751]
[1731274558450,0.06462247,79644.0,79637.0,0.062743]
[1731274558643,0.06462247,79644.0,79636.0,0.3608]
[1731274558834,0.06462247,79644.0,79637.0,0.0744]
[1731274559036,0.00188447,79644.0,79643.0,0.3608]
[1731274559242,0.18202349,79642.0,79627.0,0.0744]
[1731274559450,0.062744,79637.0,79627.0,0.0744]
[1731274559742,0.18202349,79642.0,79621.0,0.06412665]
[1731274559743,0.062755,79623.0,79621.0,0.06412665]
[1731274559945,0.062755,79623.0,79619.0,0.3608]
[1731274560245,0.062755,79623.0,79621.0,0.062756]
[1731274560544,0.22971,79629.0,79619.0,0.42482221]
[1731274560748,0.062749,79631.0,79625.0,0.062753]
[1731274561046,0.16696,79642.0,79628.0,0.3608]
[1731274561244,0.062744,79637.0,79636.0,0.3608]
[1731274562041,0.062754,79624.0,79619.0,0.06586654]
[1731274562354,0.062741,79641.0,79619.0,0.06402221]
[1731274562355,0.062757,79620.0,79619.0,0.06402221]
[1731274562549,0.18202349,79626.0,79616.0,0.3608]
[1731274562550,0.062759,79617.0,79616.0,0.3608]
[1731274562742,0.24478249,79617.0,79616.0,0.3608]
[1731274562943,0.062761,79615.0,79614.0,0.06198148]
[1731274563140,0.16696,79624.0,79609.0,0.00184421]
[1731274563346,0.16696,79624.0,79618.0,0.3608]
[1731274563748,0.18390772,79633.0,79618.0,0.3608]
[1731274563947,0.062752,79627.0,79619.0,0.35288845]
[1731274564249,0.062754,79624.0,79619.0,0.35288845]
[1731274564455,0.16696,79632.0,79619.0,0.35288845]
[1731274564456,0.062755,79623.0,79619.0,0.35288845]
[1731274564946,0.16696,79632.0,79621.0,0.062756]
[1731274565142,0.18390772,79633.0,79621.0,0.062756]
[1731274565143,0.062753,79625.0,79621.0,0.062756]
[1731274565455,0.16696,79626.0,79621.0,0.062756]
[1731274565756,0.062754,79624.0,79621.0,0.062756]
[1731274566145,0.062754,79624.0,79622.0,0.062755]
[1731274566346,0.062755,79623.0,79619.0,0.35288845]
[1731274566546,0.16696,79626.0,79619.0,0.35288845]
[1731274566547,0.062756,79621.0,79619.0,0.35288845]
[1731274567950,0.062756,79621.0,79619.0,0.41564545]
[1731274568460,0.062756,79621.0,79620.0,0.062757]
[1731274568756,0.18202349,79633.0,79619.0,0.35288845]
[1731274568960,0.03959153,79632.0,79631.0,0.062748]
[1731274569170,0.00188445,79637.0,79636.0,0.062744]
[1731274569374,0.01698861,79637.0,79636.0,0.423544]
[1731274570072,0.01698861,79637.0,79634.0,0.3608]
[1731274570073,0.01510416,79637.0,79634.0,0.3608]
[1731274570279,0.01510416,79636.0,79629.0,0.06275]
[1731274570574,0.01510416,79635.0,79630.0,0.062749]
[1731274570874,0.18202349,79648.0,79622.0,0.062755]
[1731274570875,0.18202349,79632.0,79622.0,0.062755]
[1731274571060,0.062751,79628.0,79622.0,0.062755]
[1731274571263,0.01510416,79627.0,79622.0,0.062755]
[1731274572365,0.01510416,79627.0,79626.0,0.3608]
[1731274572568,0.16696,79632.0,79626.0,0.3608]
[1731274572569,0.16696,79632.0,79629.0,0.062749]
[1731274572763,0.05494665,79631.0,79629.0,0.062749]
[1731274573074,0.16696,79632.0,79630.0,0.062749]
[1731274573275,0.03981239,79631.0,79626.0,0.3608]
[1731274573470,0.06275,79629.0,79624.0,0.062753]
[1731274573667,0.16696,79632.0,79618.0,0.3608]
[1731274573971,0.05414294,79631.0,79618.0,0.4243768]
[1731274574160,0.062754,79624.0,79618.0,0.4871348]
[1731274574366,0.01453033,79623.0,79618.0,0.4871348]
[1731274574563,0.01453033,79622.0,79621.0,0.062756]
[1731274575167,0.16696,79632.0,79621.0,0.062756]
[1731274575368,0.18202349,79634.0,79618.0,0.4259768]
[1731274575665,0.18202349,79634.0,79628.0,0.06275]
[1731274575666,0.16696,79631.0,79628.0,0.06275]
[1731274576969,0.229709,79631.0,79628.0,0.06275]
[1731274577678,0.3608,79643.0,79626.0,0.3608]
[1731274577866,0.18217059,79650.0,79626.0,0.3608]
[1731274577867,0.03977807,79642.0,79641.0,0.42354]
[1731274578067,0.0001471,79650.0,79648.0,0.062735]
[1731274578277,0.0001471,79650.0,79649.0,0.3608]
[1731274578477,0.0001471,79650.0,79649.0,0.54931462]
[1731274578862,0.00083,79666.0,79649.0,0.92595462]
[1731274579067,0.00083,79666.0,79665.0,0.062722]
[1731274579276,0.16648,79693.0,79689.0,0.062702]
[1731274579277,0.06138834,79693.0,79689.0,0.062702]
[1731274579478,0.0469643,79692.0,79689.0,0.423502]
[1731274579779,0.062696,79698.0,79689.0,0.40025161]
[1731274579982,0.24487782,79697.0,79689.0,0.3608]
[1731274581469,0.062701,79691.0,79689.0,0.3608]
[1731274582369,0.34866082,79697.0,79689.0,0.3608]
[1731274582370,0.18218082,79697.0,79689.0,0.3608]
[1731274582773,0.24487682,79697.0,79689.0,0.3608]
[1731274582968,0.0627,79693.0,79689.0,0.3608]
[1731274583472,0.062701,79691.0,79689.0,0.3608]
[1731274583977,0.3608,79695.0,79680.0,0.00184776]
[1731274584277,0.3608,79695.0,79680.0,0.00012776]
[1731274584278,0.24473249,79681.0,79680.0,0.00012776]
[1731274585077,0.62125249,79681.0,79680.0,0.00012776]
[1731274585276,0.25942134,79681.0,79680.0,0.00012776]
[1731274585675,0.25942134,79681.0,79669.0,0.00182507]
[1731274585676,0.93403234,79681.0,79669.0,0.00182507]
[1731274585881,0.423514,79674.0,79669.0,0.00182507]
[1731274586079,0.423514,79674.0,79664.0,0.06304128]
[1731274586273,0.43820285,79674.0,79664.0,0.06304128]
[1731274586473,0.07740285,79674.0,79664.0,0.06304128]
[1731274586881,0.43820285,79674.0,79662.0,0.3608]
[1731274587284,0.07740285,79674.0,79662.0,0.3608]
[1731274587676,0.43820285,79674.0,79663.0,0.06168975]
[1731274588279,0.423514,79674.0,79663.0,0.06168975]
[1731274589490,0.423514,79674.0,79662.0,0.3608]
[1731274590178,0.81459367,79674.0,79662.0,0.3608]
[1731274590378,0.062728,79657.0,79653.0,0.0058]
[1731274590580,0.07728767,79657.0,79653.0,0.06190944]
[1731274590882,0.0774177,79657.0,79650.0,0.00164]
[1731274591181,0.0774177,79657.0,79646.0,0.06194083]
[1731274591888,0.0146897,79657.0,79654.0,0.3608]
[1731274592085,0.0146897,79657.0,79655.0,0.062729]
[1731274592280,0.0146897,79657.0,79656.0,0.06430572]
[1731274592482,0.0146897,79657.0,79656.0,0.18724913]
[1731274593586,0.0146897,79657.0,79656.0,0.06226317]
[1731274593587,0.00013003,79657.0,79656.0,0.06226317]
[1731274594180,0.01521627,79657.0,79656.0,0.06226317]
[1731274594676,0.1975621,79657.0,79656.0,0.00011147]
[1731274595477,0.01553861,79657.0,79656.0,0.00011147]
[1731274596196,0.00013003,79657.0,79656.0,0.06284047]
[1731274597785,0.01633345,79657.0,79656.0,0.06284047]
[1731274600786,0.00013003,79657.0,79656.0,0.06284047]
[1731274601490,0.18215352,79657.0,79656.0,0.00011147]
[1731274601691,0.19871441,79657.0,79656.0,0.00011147]
[1731274601993,0.19871441,79657.0,79656.0,5.882e-05]
[1731274603890,0.55951441,79657.0,79656.0,5.882e-05]
[1731274605988,0.55914023,79657.0,79656.0,5.882e-05]
[1731274607094,0.55914023,79657.0,79656.0,1.882e-05]
[1731274607796,0.59628471,79657.0,79656.0,1.882e-05]
[1731274611793,0.062735,79649.0,79641.0,0.4203737]
[1731274611995,0.59628471,79657.0,79641.0,0.4203737]
[1731274611996,0.01656089,79648.0,79641.0,0.4203737]
[1731274612200,0.01656089,79647.0,79642.0,0.062739]
[1731274612501,0.01656089,79646.0,79642.0,0.062739]
[1731274612696,0.01656089,79646.0,79641.0,0.42216503]
[1731274612896,0.01656089,79646.0,79645.0,0.062737]
[1731274613096,0.01656089,79646.0,79641.0,0.42056503]
[1731274613097,0.16617003,79657.0,79651.0,0.062732]
[1731274613293,0.01550454,79656.0,79654.0,0.06273]
[1731274613501,0.01550454,79655.0,79654.0,0.06273]
[1731274614208,0.07823454,79655.0,79653.0,0.3608]
[1731274614404,0.06273,79655.0,79653.0,0.3608]
[1731274614795,0.18177934,79657.0,79641.0,0.48498503]
[1731274614796,0.062737,79646.0,79641.0,0.48498503]
[1731274615003,0.18164931,79648.0,79641.0,0.48330503]
[1731274615205,0.062742,79640.0,79638.0,0.00188348]
[1731274615395,0.062745,79635.0,79628.0,0.0801]
[1731274615594,0.0989492,79635.0,79624.0,0.3608]
[1731274615797,0.062745,79635.0,79627.0,0.062751]
[1731274616000,0.07759656,79635.0,79627.0,0.062751]
[1731274616405,0.07759656,79635.0,79627.0,0.1241125]
[1731274616900,0.07759656,79635.0,79627.0,0.0613615]
[1731274617099,0.07759656,79635.0,79624.0,0.3608]
[1731274617406,0.24440231,79625.0,79624.0,0.3608]
[1731274617700,0.42529387,79625.0,79624.0,0.3608]
[1731274619098,0.062759,79617.0,79616.0,0.3608]
[1731274619300,0.2593914,79617.0,79616.0,0.3608]
[1731274619701,0.2593914,79617.0,79611.0,0.06605029]
[1731274619702,0.06276,79616.0,79611.0,0.06605029]
[1731274619895,0.01485156,79615.0,79611.0,0.06605029]
[1731274620504,0.01485156,79614.0,79612.0,0.062763]
[1731274620704,0.00013153,79617.0,79613.0,0.062762]
[1731274621011,0.18164931,79614.0,79611.0,0.06605029]
[1731274621205,0.01571483,79613.0,79611.0,0.06605029]
[1731274621800,0.01571483,79613.0,79612.0,0.062763]
[1731274622009,0.01571483,79616.0,79612.0,0.062763]
[1731274622210,0.01571483,79615.0,79612.0,0.062763]
[1731274622509,0.01571483,79614.0,79612.0,0.062763]
[1731274622702,0.01571483,79613.0,79612.0,0.062763]
[1731274622898,0.06289153,79617.0,79612.0,0.062763]
[1731274623099,0.01571483,79616.0,79612.0,0.062763]
[1731274624408,0.01571483,79616.0,79611.0,0.06605029]
[1731274624709,0.3608,79648.0,79616.0,0.06276]
[1731274624916,0.0159083,79632.0,79631.0,0.062748]
[1731274625204,0.0159083,79632.0,79631.0,0.03432155]
[1731274625801,0.0160608,79632.0,79631.0,0.03432155]
[1731274626502,0.0001525,79632.0,79631.0,0.03432155]
[1731274627007,0.01470191,79632.0,79631.0,0.03432155]
[1731274627803,0.01470191,79632.0,79631.0,0.09652447]
[1731274628109,0.01470191,79632.0,79631.0,0.03432155]
[1731274629114,0.062751,79628.0,79622.0,0.062755]
[1731274629309,0.062753,79625.0,79622.0,0.062755]
[1731274629501,0.062754,79624.0,79617.0,0.21076016]
[1731274629702,0.062754,79624.0,79616.0,0.4252]
[1731274629703,0.18164931,79618.0,79616.0,0.36244]
[1731274629908,0.18164931,79618.0,79611.0,0.00188388]
[1731274629909,0.01454941,79617.0,79611.0,0.00188388]
[1731274630107,0.062763,79613.0,79611.0,0.00188388]
[1731274630306,0.01454941,79612.0,79611.0,0.00188388]
[1731274630506,0.54269085,79612.0,79593.0,0.00761672]
[1731274630705,0.54269085,79612.0,79588.0,0.00761672]
[1731274630706,0.423568,79606.0,79588.0,0.00761672]
[1731274631102,0.423568,79606.0,79588.0,0.0058]
[1731274631103,0.43937885,79606.0,79588.0,0.0058]
[1731274631303,0.37661085,79606.0,79588.0,0.0058]
[1731274631512,0.18164931,79589.0,79583.0,0.06460272]
[1731274631718,0.18164931,79589.0,79583.0,0.062786]
[1731274631719,0.01581085,79588.0,79583.0,0.062786]
[1731274631902,0.01581085,79587.0,79583.0,0.062786]
[1731274632108,0.01581085,79586.0,79583.0,0.062786]
[1731274632305,0.01597352,79585.0,79583.0,0.12438581]
[1731274632508,0.01581085,79584.0,79583.0,0.12438581]
[1731274632710,0.07859585,79584.0,79583.0,0.06159981]
[1731274632928,0.07859585,79584.0,79576.0,0.423591]
[1731274633105,0.18164931,79577.0,79576.0,0.423591]
[1731274633307,0.19746016,79577.0,79576.0,0.423591]
[1731274633606,0.01581085,79577.0,79576.0,0.3608]
[1731274633810,0.01581085,79577.0,79573.0,0.00188511]
[1731274634010,0.01581085,79576.0,79575.0,0.062792]
[1731274635118,0.07860285,79576.0,79573.0,0.00188511]
[1731274635423,0.062793,79575.0,79573.0,0.00188511]
[1731274636415,0.062794,79573.0,79572.0,0.00010049]
[1731274638415,0.18164931,79577.0,79572.0,0.00010049]
[1731274638719,0.062793,79575.0,79572.0,0.00010049]
[1731274639019,0.24444231,79575.0,79572.0,0.00010049]
[1731274639315,0.062794,79574.0,79572.0,0.00010049]
[1731274640617,0.01684045,79573.0,79572.0,0.00010049]
[1731274642713,0.18300045,79573.0,79572.0,0.00010049]
[1731274648920,0.30436354,79573.0,79572.0,0.00010049]
[1731274650116,0.13820354,79573.0,79572.0,0.00010049]
[1731274650324,0.30440354,79573.0,79572.0,0.00010049]
[1731274650620,0.30727855,79573.0,79572.0,0.00010049]
[1731274653731,0.28756309,79573.0,79572.0,0.00010049]
[1731274654728,0.14038589,79573.0,79572.0,0.00010049]
[1731274654928,0.30598589,79573.0,79572.0,0.00010049]
[1731274655629,0.30598589,79573.0,79554.0,0.0058]
[1731274655630,1.16514898,79573.0,79554.0,0.0058]
[1731274655828,1.16514898,79573.0,79548.0,0.0018855]
[1731274655829,0.06281,79553.0,79548.0,0.0018855]
[1731274656020,0.0818328,79553.0,79548.0,0.0018855]
[1731274656431,0.0818328,79553.0,79547.0,0.36248]
[1731274656432,0.0190228,79553.0,79551.0,0.14195215]
[1731274656629,0.18416109,79569.0,79559.0,0.062805]
[1731274656824,0.18416109,79569.0,79560.0,0.3608]
[1731274657323,0.12136309,79563.0,79562.0,0.062802]
[1731274657624,0.12136309,79563.0,79560.0,0.36244]
[1731274657625,0.062803,79562.0,79560.0,0.36244]
[1731274657932,0.062808,79555.0,79554.0,0.00010714]
[1731274658129,0.18417109,79555.0,79554.0,0.00010714]
[1731274659532,0.062808,79555.0,79554.0,0.00010714]
[1731274660432,0.062808,79555.0,79554.0,4.337e-05]
[1731274662127,0.062808,79555.0,79537.0,0.0058]
[1731274662128,0.062822,79538.0,79537.0,0.0058]
[1731274662328,0.18418509,79538.0,79533.0,0.0736]
[1731274662529,0.18418509,79538.0,79533.0,0.1456]
[1731274663229,9.302e-05,79537.0,79533.0,0.1456]
[1731274663629,0.062823,79536.0,79533.0,0.1456]
[1731274664031,9.302e-05,79537.0,79533.0,0.1456]
[1731274664032,0.062825,79535.0,79533.0,0.1456]
[1731274665239,0.062826,79533.0,79532.0,0.00168]
[1731274665440,0.12136309,79536.0,79520.0,0.35396408]
[1731274665629,0.12136309,79521.0,79520.0,0.35236408]
[1731274666530,0.14027841,79521.0,79520.0,0.35236408]
[1731274666927,0.01891532,79521.0,79520.0,0.35236408]
[1731274667135,0.01891532,79521.0,79520.0,0.72964408]
[1731274667931,0.01891532,79521.0,79520.0,0.35236408]
[1731274671745,0.062836,79520.0,79518.0,0.20990323]
[1731274671927,0.01891532,79519.0,79518.0,0.20990323]
[1731274674629,0.01891532,79519.0,79511.0,0.062843]
[1731274674832,0.3608,79525.0,79510.0,0.36255553]
[1731274674833,0.062843,79511.0,79510.0,0.36255553]
[1731274675030,0.062843,79511.0,79510.0,0.36095553]
[1731274675235,0.08175832,79511.0,79510.0,0.36095553]
[1731274676545,0.08175832,79511.0,79510.0,0.4222705]
[1731274676745,0.01891532,79511.0,79510.0,0.4222705]
[1731274679037,0.01891532,79511.0,79510.0,0.0614705]
[1731274681154,0.01891532,79511.0,79510.0,0.00015553]
[1731274681452,0.01891532,79511.0,79510.0,6.831e-05]
[1731274685346,0.09361532,79511.0,79504.0,0.0016]
[1731274685555,0.48216309,79505.0,79500.0,0.1]
[1731274685758,0.062848,79501.0,79500.0,0.1]
[1731274685950,0.08176332,79501.0,79500.0,0.1]
[1731274686757,0.08176332,79501.0,79488.0,0.36244]
[1731274686758,0.062855,79492.0,79488.0,0.00164]
[1731274686959,0.01891532,79491.0,79487.0,0.00015272]
[1731274687159,0.12136309,79488.0,79487.0,0.00015272]
[1731274687356,0.01891532,79488.0,79487.0,0.06301172]
[1731274687758,0.00013829,79500.0,79487.0,0.37755272]
[1731274687958,0.00013829,79500.0,79498.0,0.062847]
[1731274688163,0.00013829,79500.0,79499.0,0.37736]
[1731274688372,0.12136309,79512.0,79499.0,0.56589942]
[1731274688665,0.00188711,79517.0,79510.0,0.062837]
[1731274688864,0.06471911,79517.0,79510.0,0.062837]
[1731274689065,0.12136309,79513.0,79506.0,0.0729]
[1731274689571,9.419e-05,79512.0,79506.0,0.0729]
[1731274689961,9.419e-05,79512.0,79506.0,0.13574]
[1731274690671,0.12136309,79507.0,79506.0,0.13574]
[1731274692073,0.12136309,79507.0,79500.0,0.075]
[1731274692268,0.06284,79507.0,79501.0,0.062844]
[1731274692466,0.12136309,79502.0,79501.0,0.062844]
[1731274694064,0.12136309,79509.0,79506.0,0.06284]
[1731274694772,0.12136309,79509.0,79507.0,0.062839]
[1731274695468,9.419e-05,79512.0,79507.0,0.062839]
[1731274695776,9.419e-05,79512.0,79509.0,0.062838]
[1731274695977,9.419e-05,79512.0,79505.0,0.3624]
[1731274696273,9.419e-05,79512.0,79510.0,0.062837]
[1731274697466,0.12136309,79511.0,79505.0,0.36248]
[1731274697667,0.12136309,79511.0,79505.0,0.423641]
[1731274697875,0.0159421,79510.0,79505.0,0.3608]
[1731274698075,0.12136309,79511.0,79505.0,0.3608]
[1731274698263,0.0159416,79510.0,79505.0,0.3608]
[1731274698567,0.12136309,79511.0,79505.0,0.3608]
[1731274698568,0.01594517,79509.0,79505.0,0.3608]
[1731274698769,0.12136309,79511.0,79505.0,0.3608]
[1731274698969,0.01561113,79510.0,79506.0,0.06284]
[1731274699171,0.01561113,79509.0,79506.0,0.06284]
[1731274699474,0.01561113,79510.0,79506.0,0.06284]
[1731274700477,0.01561113,79509.0,79506.0,0.06284]
[1731274700671,0.01561113,79508.0,79506.0,0.06284]
[1731274700873,0.062838,79510.0,79505.0,0.3624]
[1731274700874,0.06284,79506.0,79505.0,0.0016]
[1731274701172,0.062849,79495.0,79485.0,0.0725]
[1731274701361,0.01561113,79494.0,79492.0,0.062851]
[1731274701566,0.062844,79502.0,79492.0,0.062851]
[1731274701567,0.01561113,79493.0,79492.0,0.062851]
[1731274701864,0.01561113,79493.0,79492.0,0.25067584]
[1731274702170,0.01561113,79493.0,79492.0,0.62807584]
[1731274702977,0.01561113,79493.0,79492.0,0.64222874]
[1731274703574,0.01561113,79493.0,79492.0,0.64795734]
[1731274703777,0.01561113,79493.0,79492.0,0.65795418]
[1731274703971,0.12136309,79506.0,79505.0,0.062841]
[1731274704276,0.01509154,79506.0,79505.0,0.062841]
[1731274704777,0.13645463,79506.0,79505.0,0.062841]
[1731274705077,0.13645463,79506.0,79502.0,0.00168]
[1731274705078,0.062843,79503.0,79502.0,0.00168]
[1731274705277,0.13645463,79506.0,79496.0,0.062848]
[1731274705278,0.062844,79501.0,79496.0,0.062848]
[1731274705484,0.12136309,79499.0,79496.0,0.062848]
[1731274705669,0.12136309,79499.0,79497.0,0.062847]
[1731274706280,0.06380684,79510.0,79495.0,0.06203932]
[1731274706471,9.419e-05,79512.0,79505.0,0.3608]
[1731274706671,9.419e-05,79512.0,79510.0,0.062837]
[1731274707371,0.06293019,79512.0,79510.0,0.062837]
[1731274707865,0.12574319,79512.0,79510.0,0.062837]
[1731274708070,0.062838,79509.0,79505.0,0.00168]
[1731274708377,0.12136309,79506.0,79504.0,0.062842]
[1731274709281,0.06290719,79512.0,79510.0,0.062837]
[1731274709487,9.419e-05,79512.0,79510.0,0.062837]
[1731274709677,9.419e-05,79512.0,79511.0,0.6918958]
[1731274709980,0.283419,79534.0,79511.0,1.0692158]
[1731274710174,0.283419,79534.0,79529.0,0.062822]
[1731274710175,0.12136309,79533.0,79529.0,0.062822]
[1731274710368,0.0251628,79554.0,79523.0,0.3608]
[1731274710369,0.062813,79542.0,79532.0,0.423619]
[1731274710574,0.062815,79539.0,79534.0,0.062818]
[1731274710778,0.12136309,79540.0,79532.0,0.0016]
[1731274710972,0.00012457,79538.0,79537.0,0.062816]
[1731274711472,0.00012457,79538.0,79537.0,0.03904115]
[1731274713173,0.00012457,79538.0,79533.0,0.3624]
[1731274713469,0.00012457,79538.0,79536.0,0.062817]
[1731274714480,0.00012457,79538.0,79537.0,0.0707]
[1731274714989,0.00314675,79545.0,79537.0,0.0707]
[1731274714990,0.00126,79545.0,79544.0,0.06281]
[1731274715283,0.3608,79574.0,79544.0,0.06281]
[1731274715284,0.3608,79590.0,79544.0,0.66958709]
[1731274715472,0.3608,79590.0,79568.0,0.3608]
[1731274715473,0.12136309,79574.0,79568.0,0.3608]
[1731274715672,0.12136309,79574.0,79565.0,0.062793]
[1731274715673,0.48216309,79574.0,79565.0,0.062793]
[1731274715877,0.48216309,79574.0,79568.0,0.3608]
[1731274715878,0.06279,79570.0,79568.0,0.3608]
[1731274716475,0.06279,79570.0,79565.0,0.062793]
[1731274716680,0.0001093,79573.0,79566.0,0.062792]
[1731274716981,0.0001093,79573.0,79569.0,0.42359]
[1731274717181,0.0001093,79573.0,79572.0,0.062788]
[1731274717778,0.0001093,79573.0,79569.0,0.3608]
[1731274717973,0.0001093,79573.0,79564.0,0.062794]
[1731274718687,0.12136309,79566.0,79560.0,0.3608]
[1731274719185,0.48216309,79566.0,79556.0,0.0001355]
[1731274719377,0.0628,79558.0,79556.0,0.0001355]
[1731274719574,0.3608,79557.0,79556.0,0.0001355]
[1731274719787,0.3608,79557.0,79537.0,0.02514887]
[1731274719788,0.80998,79557.0,79537.0,0.02514887]
[1731274720087,0.3608,79543.0,79537.0,0.02514887]
[1731274720281,0.062811,79544.0,79537.0,0.02514887]
[1731274720489,0.07,79543.0,79536.0,0.3608]
[1731274720684,0.07,79543.0,79529.0,0.3608]
[1731274720891,0.062814,79540.0,79529.0,0.3608]
[1731274721186,0.12136309,79534.0,79529.0,0.3608]
[1731274722176,0.12136309,79534.0,79527.0,0.062823]
[1731274723878,0.18418209,79534.0,79527.0,0.062823]
[1731274724083,0.12136309,79534.0,79527.0,0.062823]
[1731274724280,0.06282,79533.0,79527.0,0.062823]
[1731274724786,0.06282,79533.0,79526.0,0.36251131]
[1731274724985,0.06282,79533.0,79526.0,0.36091131]
[1731274725187,0.01443299,79532.0,79526.0,0.36091131]
[1731274725490,0.01443299,79531.0,79529.0,0.062822]
[1731274725688,0.01443299,79530.0,79529.0,0.062822]
[1731274725989,0.062815,79539.0,79533.0,0.062819]
[1731274726181,0.3608,79540.0,79534.0,0.062818]
[1731274727080,0.3608,79540.0,79535.0,0.062817]
[1731274727278,0.3608,79547.0,79539.0,0.062814]
[1731274727481,0.062811,79544.0,79539.0,0.062814]
[1731274728089,0.062814,79540.0,79536.0,0.3608]
[1731274728486,0.01469582,79539.0,79537.0,0.062816]
[1731274728684,0.01469582,79538.0,79537.0,0.062816]
[1731274728889,0.062813,79541.0,79536.0,0.3608]
[1731274729085,0.07750982,79540.0,79536.0,0.3608]
[1731274729287,0.01469582,79539.0,79536.0,0.3608]
[1731274729591,0.062815,79538.0,79536.0,0.3608]
[1731274729786,0.01469582,79537.0,79536.0,0.3608]
[1731274729985,0.01469582,79537.0,79528.0,0.062823]
[1731274730191,0.062824,79528.0,79526.0,0.00175131]
[1731274730396,0.062824,79528.0,79526.0,0.00011131]
[1731274730687,0.01542669,79527.0,79526.0,0.00011131]
[1731274731391,0.062825,79526.0,79511.0,0.0018861]
[1731274731587,0.84296309,79529.0,79511.0,0.0018861]
[1731274731588,0.12136309,79513.0,79511.0,0.0018861]
[1731274731889,0.01542669,79512.0,79511.0,0.0018861]
[1731274733396,0.01542669,79512.0,79511.0,0.06330949]
[1731274733991,0.12136309,79525.0,79511.0,0.62945415]
[1731274734184,0.01542475,79524.0,79520.0,0.062829]
[1731274734384,0.12136309,79525.0,79518.0,0.3608]
[1731274734385,0.01542475,79523.0,79518.0,0.3608]
[1731274734586,0.062836,79512.0,79511.0,0.06330949]
[1731274734790,0.18419909,79512.0,79511.0,0.0018861]
[1731274734987,0.19888708,79512.0,79511.0,0.0018861]
[1731274735188,0.18419909,79512.0,79511.0,0.0018861]
[1731274745900,0.06401157,79516.0,79511.0,0.0018861]
[1731274746094,0.3608,79533.0,79525.0,0.062825]
[1731274746095,0.062821,79531.0,79525.0,0.062825]
[1731274746299,0.0001048,79536.0,79530.0,0.3608]
[1731274746499,0.0001048,79536.0,79535.0,0.062818]
[1731274749240,0.12146789,79536.0,79531.0,0.0016]
[1731274749510,0.062823,79528.0,79526.0,0.0739]
[1731274749706,0.01442135,79527.0,79526.0,0.0739]
[1731274750007,0.01442135,79527.0,79512.0,0.00176289]
[1731274750194,0.12136309,79517.0,79512.0,0.07426289]
[1731274750396,0.01442135,79516.0,79512.0,0.13667094]
[1731274750613,0.062834,79514.0,79512.0,0.0725]
[1731274750796,0.062837,79511.0,79505.0,0.06241654]
[1731274751002,0.12136309,79508.0,79505.0,0.06241654]
[1731274751202,0.01431281,79507.0,79505.0,0.06241654]
[1731274751703,0.01431281,79507.0,79503.0,0.00176289]
[1731274751904,0.01431281,79507.0,79502.0,0.062843]
[1731274752097,0.01431281,79507.0,79506.0,0.4237552]
[1731274752504,0.01431281,79507.0,79506.0,0.0629552]
[1731274753406,0.06293217,79519.0,79506.0,0.0001152]
[1731274753609,0.062832,79517.0,79506.0,0.0001152]
[1731274753808,0.3608,79522.0,79520.0,0.062829]
[1731274754109,0.0001048,79536.0,79521.0,0.1505]
[1731274754410,0.0001048,79536.0,79535.0,0.3608]
[1731274754599,0.0001048,79536.0,79527.0,0.3608]
[1731274754600,0.0001048,79536.0,79527.0,0.423624]
[1731274754905,0.0629218,79536.0,79526.0,0.062824]
[1731274755213,0.062818,79535.0,79526.0,0.062824]
[1731274755613,0.062821,79531.0,79526.0,0.062824]
[1731274756110,0.0001048,79536.0,79525.0,0.3608]
[1731274756302,0.0001048,79536.0,79529.0,0.062822]
[1731274756710,0.0001048,79536.0,79525.0,0.3608]
[1731274756905,0.0001048,79536.0,79534.0,0.062818]
[1731274759016,0.0001048,79536.0,79532.0,0.3608]
[1731274759205,0.0001048,79536.0,79528.0,0.3608]
[1731274759707,0.0001048,79536.0,79529.0,0.062822]
[1731274760208,0.0001048,79536.0,79528.0,0.3608]
[1731274760399,0.0001048,79536.0,79532.0,0.06282]
[1731274760802,0.0001048,79536.0,79534.0,0.062818]
[1731274761004,0.0001048,79536.0,79535.0,0.3608]